bitfinex-derivatives/quotes_ETHF0:USTF0_20250220
["timestamp","ask_amount","ask_price","bid_price","bid_amount"]
[1740020094985,0.5839,2750.5,2750.3,3.2078]
[1740020095386,1.3111,2750.5,2750.3,3.2078]
[1740020095788,0.7272,2750.5,2750.3,3.2078]
[1740020095989,0.73260067,2750.6,2750.3,3.7891]
[1740020096784,0.00542067,2750.6,2750.3,3.7891]
[1740020096985,0.72722,2750.4,2750.3,3.7891]
[1740020097290,0.72719,2750.5,2750.3,3.7891]
[1740020098584,0.73259067,2750.6,2750.3,3.7891]
[1740020098784,0.72722,2750.4,2750.3,3.2078]
[1740020099889,0.72737,2749.9,2749.7,3.2078]
[1740020100185,2.525,2750.2,2749.3,3.21325445]
[1740020100388,0.72748,2749.4,2749.3,0.00545445]
[1740020100690,3.25348,2749.4,2749.3,0.00545445]
[1740020100988,2.526,2749.4,2749.3,0.00545445]
[1740020101189,6.1678,2749.7,2749.3,0.00545445]
[1740020101386,3.2078,2750.2,2749.5,3.2078]
[1740020101590,5.7378,2750.2,2749.8,3.2078]
[1740020102398,0.72735,2749.9,2749.8,3.2078]
[1740020102588,0.72744,2749.6,2749.4,3.2078]
[1740020102989,0.72746,2749.5,2749.4,3.2078]
[1740020103291,0.72745,2749.6,2749.3,3.21325445]
[1740020103491,0.72746,2749.5,2749.3,3.21325445]
[1740020103890,2.534,2749.7,2749.3,3.21325445]
[1740020104293,3.26142,2749.7,2749.3,3.21325445]
[1740020104488,0.72743,2749.6,2749.3,3.21325445]
[1740020104997,0.72748,2749.4,2749.3,3.21325445]
[1740020105189,0.72748,2749.4,2749.3,0.00545445]
[1740020105397,9.01808325,2749.4,2748.5,3.2078]
[1740020105691,0.7277,2748.7,2748.5,3.2078]
[1740020105894,2.546,2748.8,2748.5,3.2078]
[1740020107190,2.546,2748.8,2748.5,3.7654]
[1740020107390,3.27365,2748.8,2748.5,3.7654]
[1740020107699,2.546,2748.8,2748.5,3.7654]
[1740020108198,0.00545445,2748.9,2748.5,4.49311]
[1740020108388,0.00545445,2748.9,2748.8,3.2078]
[1740020108990,0.00545445,2748.9,2748.8,3.93544]
[1740020109185,2.544,2749.6,2748.8,3.2078]
[1740020109389,2.544,2749.6,2749.3,3.2078]
[1740020109589,0.5406,2749.9,2749.3,3.2078]
[1740020109787,2.96,2750.2,2749.8,0.72736]
[1740020109985,2.544,2750.2,2750.0,3.2078]
[1740020110398,3.27129,2750.2,2750.0,3.2078]
[1740020110693,2.544,2750.2,2750.0,3.2078]
[1740020112090,0.531,2750.3,2750.0,3.2078]
[1740020112289,2.55342067,2750.4,2750.0,3.2078]
[1740020112498,2.55342067,2750.4,2750.3,3.2078]
[1740020113090,0.00542067,2750.4,2750.3,3.2078]
[1740020113292,2.549,2750.9,2750.5,0.72718]
[1740020113590,22.723,2751.2,2750.6,4.51695]
[1740020113793,20.174,2751.2,2750.9,3.2078]
[1740020113996,2.549,2751.4,2751.0,0.5838]
[1740020114592,3.27596,2751.4,2751.0,0.5838]
[1740020114992,2.549,2751.4,2751.0,0.5838]
[1740020115194,0.727,2751.3,2751.0,0.5838]
[1740020115592,2.549,2751.4,2751.0,0.5838]
[1740020115793,4.2871,2751.6,2751.0,0.5838]
[1740020115996,6.297,2751.6,2751.0,0.5838]
[1740020116498,6.297,2751.6,2751.2,3.2078]
[1740020116499,1.27011,2751.6,2751.2,3.2078]
[1740020116695,3.0882,2751.6,2751.2,3.2078]
[1740020116904,0.72693,2751.5,2751.2,3.2078]
[1740020117098,3.0872,2751.6,2751.2,3.2078]
[1740020117099,0.5432,2751.6,2751.2,3.2078]
[1740020117396,0.5432,2751.6,2751.5,3.2078]
[1740020117591,3.123,2751.8,2751.5,3.2078]
[1740020117592,0.72688,2751.7,2751.5,3.2078]
[1740020117796,0.7269,2751.6,2751.5,3.2078]
[1740020118498,0.72689,2751.7,2751.5,3.2078]
[1740020118701,0.7269,2751.6,2751.5,3.2078]
[1740020120303,2.536,2751.7,2751.5,3.2078]
[1740020120496,0.5511,2752.1,2751.5,3.2078]
[1740020120694,3.2078,2753.5,2751.8,3.2078]
[1740020120895,0.05801142,2753.4,2752.7,3.2078]
[1740020121097,0.72658,2752.9,2752.4,3.2078]
[1740020121400,5.80580422,2752.8,2752.1,3.2078]
[1740020121599,3.93447,2752.5,2752.4,0.00545445]
[1740020121898,3.99248356,2752.5,2752.4,0.00545445]
[1740020122092,9.26581356,2752.5,2751.2,3.2078]
[1740020122298,0.72672,2752.3,2751.5,3.2078]
[1740020122503,2.559,2752.4,2751.8,3.2078]
[1740020123099,0.7269,2751.6,2751.5,3.2078]
[1740020123291,0.7269,2751.6,2751.2,3.2078]
[1740020123292,0.72698,2751.3,2751.2,3.2078]
[1740020123496,0.72706,2751.1,2750.8,3.2078]
[1740020123697,1.7201,2751.5,2750.8,3.2078]
[1740020123893,2.576,2751.4,2750.8,3.2078]
[1740020124092,0.73247445,2751.2,2750.9,1.1428]
[1740020124291,0.00545445,2751.2,2751.1,3.2078]
[1740020124908,0.72705,2751.1,2750.9,0.5562]
[1740020125097,2.586,2751.0,2750.9,0.5562]
[1740020125297,2.586,2751.0,2750.8,3.2078]
[1740020125591,0.72711,2750.8,2750.7,0.00545445]
[1740020129501,0.72711,2750.8,2750.0,4.77754288]
[1740020129502,10.8358651,2750.8,2750.0,4.77754288]
[1740020129803,3.2078,2750.5,2749.8,3.2078]
[1740020130006,0.72734,2750.0,2749.8,3.2078]
[1740020130200,0.72735,2749.9,2749.8,3.2078]
[1740020130601,2.582,2750.0,2749.8,3.2078]
[1740020130905,0.72735,2749.9,2749.8,3.2078]
[1740020132898,1.1219,2750.4,2749.8,3.2078]
[1740020133103,2.575,2750.3,2750.1,3.2078]
[1740020133699,2.96,2750.6,2750.1,3.2078]
[1740020133900,2.575,2750.8,2750.5,3.2078]
[1740020134103,2.577,2751.1,2750.5,3.2078]
[1740020134296,3.2078,2751.4,2750.8,3.2078]
[1740020134496,0.545,2751.5,2751.1,3.2078]
[1740020134897,0.73246445,2751.2,2751.1,3.2078]
[1740020136009,0.00545445,2751.2,2751.1,3.2078]
[1740020136810,0.73246445,2751.2,2751.1,3.2078]
[1740020137009,0.00545445,2751.2,2751.1,3.2078]
[1740020137211,3.2078,2752.0,2751.1,3.2078]
[1740020137212,0.72676,2752.2,2751.4,0.72694]
[1740020137516,0.72661,2752.7,2751.9,3.2078]
[1740020137713,0.05801234,2752.6,2751.9,3.2078]
[1740020137914,2.65201234,2752.6,2751.9,3.2078]
[1740020138214,2.594,2752.6,2751.9,3.2078]
[1740020138417,0.72672,2752.3,2752.0,0.00545445]
[1740020138614,0.72675,2752.2,2752.0,0.00545445]
[1740020138816,0.00545445,2752.5,2752.0,0.00545445]
[1740020139317,0.72677,2752.2,2752.0,0.00545445]
[1740020139512,0.00545445,2752.5,2752.0,0.00545445]
[1740020139815,0.72677,2752.1,2752.0,0.00545445]
[1740020140011,0.72696,2751.4,2751.3,3.2078]
[1740020140622,0.72706,2751.1,2751.0,3.2078]
[1740020141122,0.72706,2751.1,2750.4,0.5591]
[1740020141123,0.72709,2750.9,2750.8,0.00545445]
[1740020142620,0.72726,2750.3,2750.1,3.2078]
[1740020142818,2.593,2750.5,2750.1,3.2078]
[1740020143021,2.595,2750.4,2749.7,3.2078]
[1740020143321,0.72728,2750.2,2749.7,3.2078]
[1740020143914,0.72732,2750.1,2749.7,3.21325445]
[1740020144715,3.2078,2750.6,2749.7,3.21325445]
[1740020144920,2.594,2750.5,2750.2,3.2078]
[1740020145421,0.72724,2750.4,2750.2,3.2078]
[1740020145921,2.594,2750.5,2750.2,3.2078]
[1740020146319,2.597,2750.7,2750.2,3.2078]
[1740020146514,2.597,2750.7,2750.2,3.93507]
[1740020146716,2.597,2750.7,2750.6,3.2078]
[1740020146915,3.68713,2750.8,2750.6,3.2078]
[1740020147111,2.96,2750.8,2750.3,3.2078]
[1740020147317,0.72715,2750.7,2750.3,3.2078]
[1740020147521,2.96,2750.8,2750.3,3.2078]
[1740020147721,3.68712,2750.8,2750.3,3.2078]
[1740020147911,2.96,2750.8,2750.3,3.2078]
[1740020148315,0.7271,2750.9,2750.3,3.2078]
[1740020148624,0.7271,2750.9,2750.3,3.93505]
[1740020148922,0.72714,2750.7,2750.3,3.2078]
[1740020149119,0.72721,2750.5,2750.3,3.2078]
[1740020149321,0.72719,2750.6,2750.3,3.2078]
[1740020149512,0.72721,2750.5,2750.3,3.2078]
[1740020149919,2.592,2750.7,2750.3,3.2078]
[1740020150721,0.72722,2750.4,2750.3,3.2078]
[1740020151113,3.2078,2750.6,2749.7,3.21325445]
[1740020151322,0.72738,2749.8,2749.7,3.21325445]
[1740020151613,0.72738,2749.8,2749.7,0.00545445]
[1740020154817,3.2078,2750.0,2749.7,0.00545445]
[1740020155322,0.72738,2749.8,2749.7,0.00545445]
[1740020160119,0.78545835,2749.8,2749.7,0.00545445]
[1740020160317,0.78545865,2749.8,2749.7,0.00545445]
[1740020160521,6.78545865,2749.8,2749.7,0.00545445]
[1740020160723,0.72748,2749.4,2749.3,3.2078]
[1740020161622,0.536,2749.7,2749.3,3.2078]
[1740020161822,20.172,2750.1,2749.6,3.2078]
[1740020162023,0.00545445,2749.8,2749.6,3.2078]
[1740020162221,0.00545445,2749.8,2749.7,0.72741]
[1740020162420,0.00545445,2749.8,2749.7,1.80921]
[1740020162626,3.2078,2750.3,2749.9,0.72735]
[1740020162825,3.2078,2750.3,2749.9,3.2078]
[1740020163122,2.574,2750.7,2750.2,3.2078]
[1740020163324,0.72722,2750.5,2750.2,3.2078]
[1740020163522,2.574,2750.7,2750.2,3.2078]
[1740020163724,0.72725,2750.3,2750.2,3.2078]
[1740020163926,0.00545445,2750.6,2749.9,3.2078]
[1740020164131,0.00545445,2750.6,2749.7,1.0818]
[1740020164132,0.72733,2750.0,2749.7,1.0818]
[1740020164328,5.7788,2750.3,2749.6,3.2078]
[1740020164530,0.7274,2749.8,2749.6,3.2078]
[1740020164725,3.2078,2750.3,2749.6,3.2078]
[1740020164926,2.579,2750.2,2749.6,3.2078]
[1740020165127,3.2078,2750.3,2749.7,0.586]
[1740020165435,0.72729,2750.2,2749.7,0.586]
[1740020165635,3.93507,2750.3,2749.7,0.586]
[1740020165837,3.93507,2750.3,2749.7,1.88569]
[1740020166232,3.2078,2750.3,2749.7,1.1583]
[1740020166436,0.72735,2749.9,2749.7,0.5723]
[1740020166631,3.2078,2750.3,2749.7,0.5723]
[1740020166632,2.577,2750.1,2749.7,0.5723]
[1740020166839,0.72741,2749.7,2749.6,3.2078]
[1740020167332,0.72737,2749.9,2749.6,3.2078]
[1740020167533,2.577,2750.1,2749.6,3.2078]
[1740020167927,0.5642,2750.2,2749.6,3.2078]
[1740020168227,2.586,2750.3,2750.0,3.2078]
[1740020169039,3.31325,2750.3,2750.0,3.2078]
[1740020169235,2.586,2750.3,2750.0,3.2078]
[1740020169533,0.72727,2750.2,2750.0,3.2078]
[1740020170037,2.586,2750.3,2749.7,3.7618]
[1740020170836,0.72729,2750.2,2749.7,4.4892]
[1740020171030,0.72731,2750.1,2749.7,3.7618]
[1740020171730,2.586,2750.3,2749.7,3.7618]
[1740020172231,0.72738,2749.8,2749.7,3.7618]
[1740020172429,0.72738,2749.8,2749.7,3.2078]
[1740020173233,0.7273,2750.1,2749.7,3.2078]
[1740020173435,0.72738,2749.8,2749.7,3.2078]
[1740020174737,2.578,2750.0,2749.7,3.2078]
[1740020175040,5.7818,2750.3,2749.7,3.2078]
[1740020175335,0.72731,2750.1,2749.7,3.2078]
[1740020175531,0.72727,2750.2,2749.7,3.93519]
[1740020175733,5.7818,2750.3,2749.7,3.2078]
[1740020175934,0.72732,2750.1,2749.7,3.2078]
[1740020176532,5.7818,2750.3,2749.7,3.2078]
[1740020176736,0.72729,2750.2,2749.7,3.9352]
[1740020177039,2.574,2750.3,2750.0,3.2078]
[1740020177230,2.574,2750.3,2749.6,1.30942]
[1740020177231,0.7273,2750.1,2749.7,3.2078]
[1740020177433,2.576,2750.4,2749.7,3.2078]
[1740020177739,0.72731,2750.1,2749.7,3.2078]
[1740020178433,0.72734,2750.0,2749.7,3.2078]
[1740020178839,2.576,2750.4,2749.7,3.2078]
[1740020179234,0.72729,2750.2,2749.7,3.93519]
[1740020179737,0.72731,2750.1,2749.7,3.2078]
[1740020179925,2.576,2750.4,2749.7,3.2078]
[1740020180732,0.72738,2749.8,2749.7,3.2078]
[1740020181629,3.2078,2750.2,2749.7,3.2078]
[1740020181833,0.72738,2749.8,2749.7,3.2078]
[1740020182034,2.568,2750.1,2749.7,3.2078]
[1740020182237,0.72738,2749.9,2749.7,3.2078]
[1740020182438,2.568,2750.1,2749.7,3.2078]
[1740020182742,0.72738,2749.8,2749.7,3.2078]
[1740020184239,0.72738,2749.8,2749.4,3.2078]
[1740020184647,2.566,2750.1,2749.4,3.2078]
[1740020185138,0.72742,2749.7,2749.4,3.2078]
[1740020185346,0.7274,2749.8,2749.4,3.2078]
[1740020185939,0.72746,2749.5,2749.4,3.2078]
[1740020186337,6.3008,2749.7,2749.1,3.21325445]
[1740020186648,0.72754,2749.2,2749.1,0.00545445]
[1740020186842,3.28954,2749.2,2749.1,0.00545445]
[1740020188246,0.7277,2748.6,2748.5,3.2078]
[1740020188745,2.561,2748.8,2748.5,3.2078]
[1740020189041,0.72768,2748.7,2748.5,3.2078]
[1740020189648,2.561,2748.8,2748.5,3.2078]
[1740020190048,0.7277,2748.6,2748.5,3.2078]
[1740020190548,0.72769,2748.7,2748.5,3.2078]
[1740020191041,0.7277,2748.6,2748.5,3.2078]
[1740020191246,0.72768,2748.7,2748.5,3.2078]
[1740020191746,0.7277,2748.6,2748.5,3.2078]
[1740020191948,2.561,2748.8,2748.3,0.00545445]
[1740020192244,3.2078,2748.4,2747.7,3.2078]
[1740020192436,3.1253,2748.3,2748.0,3.2078]
[1740020192643,3.85308,2748.3,2748.0,3.2078]
[1740020192951,3.1253,2748.3,2748.0,3.2078]
[1740020193145,3.8531,2748.3,2748.0,3.2078]
[1740020193451,2.556,2748.6,2748.2,0.72779]
[1740020193652,2.556,2748.6,2748.3,3.2078]
[1740020194043,3.28372,2748.6,2748.3,3.2078]
[1740020194346,2.556,2748.6,2748.3,3.2078]
[1740020194553,0.72775,2748.4,2748.3,3.2078]
[1740020194748,2.556,2748.6,2748.3,3.2078]
[1740020194749,0.72774,2748.5,2748.3,3.2078]
[1740020195054,2.556,2748.6,2748.0,3.2078]
[1740020195249,2.556,2748.6,2748.3,3.2078]
[1740020196047,0.00545445,2748.9,2748.6,0.72769]
[1740020196241,0.00545445,2748.9,2748.8,0.72764]
[1740020196447,3.7772,2749.8,2748.8,2.566]
[1740020196647,3.7772,2749.8,2749.3,3.93529]
[1740020196847,3.7772,2749.8,2749.3,3.2078]
[1740020197151,0.72741,2749.7,2749.3,3.2078]
[1740020197544,3.7772,2749.8,2749.3,3.2078]
[1740020197744,0.57485445,2749.8,2749.6,3.2078]
[1740020197939,1.30223445,2749.8,2749.6,3.2078]
[1740020198351,0.72741,2749.7,2749.6,3.2078]
[1740020198748,0.57485445,2749.8,2749.6,3.2078]
[1740020199148,1.30223445,2749.8,2749.6,3.2078]
[1740020199349,0.57485445,2749.8,2749.6,3.2078]
[1740020199750,1.30225445,2749.8,2749.6,3.2078]
[1740020200049,0.72741,2749.7,2749.6,3.2078]
[1740020200548,0.00545445,2749.8,2749.6,3.2078]
[1740020202853,0.00545445,2749.8,2749.7,0.72741]
[1740020203347,0.00545445,2749.8,2749.6,3.2078]
[1740020203556,0.73284445,2749.8,2749.6,3.2078]
[1740020203949,0.72741,2749.7,2749.6,3.2078]
[1740020204752,3.28341,2749.7,2749.6,3.2078]
[1740020205944,2.556,2749.7,2749.2,0.00545445]
[1740020206153,0.5561,2749.6,2749.2,0.00545445]
[1740020206552,0.72751,2749.3,2749.2,0.00545445]
[1740020207252,3.28351,2749.3,2749.2,0.00545445]
[1740020207451,8.61409065,2749.3,2748.6,3.2078]
[1740020207753,0.72765,2748.8,2748.6,3.2078]
[1740020207954,3.28365,2748.8,2748.6,3.2078]
[1740020208150,2.556,2748.8,2748.6,3.2078]
[1740020208349,3.28365,2748.8,2748.6,3.2078]
[1740020209353,2.556,2748.8,2748.6,3.2078]
[1740020209755,3.28365,2748.8,2748.6,3.2078]
[1740020210557,2.556,2748.8,2748.6,3.2078]
[1740020211156,3.28364,2748.8,2748.6,3.2078]
[1740020211649,2.556,2748.8,2748.4,0.00545445]
[1740020211855,0.72772,2748.5,2748.4,0.00545445]
[1740020212448,0.05810864,2748.5,2748.0,3.2078]
[1740020212647,0.72783,2748.1,2748.0,3.2078]
[1740020213356,0.7279,2747.9,2747.6,3.2078]
[1740020213553,2.549,2747.8,2747.6,3.2078]
[1740020215962,3.27692,2747.8,2747.6,3.2078]
[1740020216255,2.549,2747.8,2747.6,3.2078]
[1740020216453,3.27693,2747.8,2747.6,3.2078]
[1740020216657,2.549,2747.8,2747.7,0.72793]
[1740020216862,0.00545445,2748.0,2747.6,11.7508]
[1740020217058,3.2078,2748.9,2747.9,3.2078]
[1740020217262,0.72772,2748.6,2748.1,0.72783]
[1740020217460,2.554,2748.5,2747.9,3.2078]
[1740020217962,2.554,2748.5,2748.2,3.2078]
[1740020218264,2.55945445,2748.5,2748.2,3.2078]
[1740020218459,0.72778,2748.3,2748.2,3.2078]
[1740020219360,0.72775,2748.4,2748.2,3.2078]
[1740020219565,2.55945445,2748.5,2748.2,3.2078]
[1740020220162,3.28718445,2748.5,2748.2,3.2078]
[1740020220457,2.55945445,2748.5,2748.2,3.2078]
[1740020221368,0.00545445,2748.5,2748.2,3.2078]
[1740020221568,0.00545445,2748.5,2748.3,0.72777]
[1740020221767,0.00545445,2748.5,2748.3,0.72776]
[1740020222366,0.00545445,2748.5,2748.2,3.93559]
[1740020223169,0.00545445,2748.5,2748.2,3.2078]
[1740020223369,0.72778,2748.4,2748.2,3.2078]
[1740020223558,0.00545445,2748.5,2748.2,3.93559]
[1740020224063,0.00545445,2748.5,2748.3,0.72777]
[1740020224568,0.00545445,2748.5,2748.2,3.93559]
[1740020225071,0.00545445,2748.5,2748.2,3.2078]
[1740020225274,0.00545445,2748.5,2748.3,0.72775]
[1740020225673,0.00545445,2748.5,2748.2,3.2078]
[1740020225873,0.73320445,2748.5,2748.2,3.2078]
[1740020226070,0.72776,2748.4,2748.2,3.2078]
[1740020226373,0.72778,2748.3,2748.2,3.2078]
[1740020226678,5.511,2748.3,2747.9,3.2078]
[1740020226875,0.72783,2748.1,2747.9,3.2078]
[1740020227175,0.72786,2748.0,2747.9,3.2078]
[1740020227376,1.30006,2748.0,2747.9,3.2078]
[1740020228378,0.7279,2747.9,2747.6,3.2078]
[1740020228573,2.553,2747.8,2747.6,3.2078]
[1740020228874,0.72793,2747.7,2747.6,3.2078]
[1740020229173,3.28092,2747.8,2747.6,3.2078]
[1740020229374,3.28093,2747.8,2747.6,3.2078]
[1740020229569,0.72793,2747.7,2747.6,3.2078]
[1740020230267,2.553,2747.8,2747.6,3.2078]
[1740020230472,0.72793,2747.7,2747.6,3.2078]
[1740020231570,2.96,2747.7,2747.5,0.00363628]
[1740020231776,0.72796,2747.6,2747.5,0.00363628]
[1740020234473,2.96,2747.7,2747.5,0.00363628]
[1740020234780,2.541,2747.6,2747.5,0.00363628]
[1740020235172,3.26896,2747.6,2747.5,0.00363628]
[1740020236280,8.59912892,2747.6,2747.0,3.2078]
[1740020236487,0.72809,2747.1,2747.0,3.2078]
[1740020236683,2.542,2747.1,2747.0,3.2078]
[1740020239783,3.27009,2747.1,2747.0,3.2078]
[1740020240185,2.542,2747.1,2747.0,3.2078]
[1740020241486,3.27009,2747.1,2747.0,3.2078]
[1740020241986,2.542,2747.1,2747.0,3.2078]
[1740020242180,3.2078,2747.5,2747.3,0.72803]
[1740020242385,2.96,2747.6,2747.0,3.2078]
[1740020242588,0.728,2747.5,2747.0,3.2078]
[1740020242789,0.72803,2747.4,2747.0,3.2078]
[1740020243588,0.728,2747.5,2747.0,3.93591]
[1740020243991,0.72802,2747.4,2747.0,3.2078]
[1740020244588,3.26802,2747.4,2747.0,3.2078]
[1740020244784,2.54,2747.4,2747.0,3.2078]
[1740020244985,0.72808,2747.2,2747.0,3.2078]
[1740020246383,0.5529,2747.3,2747.0,3.2078]
[1740020246584,1.28096,2747.3,2747.0,3.2078]
[1740020247394,0.5529,2747.3,2747.0,3.2078]
[1740020248196,0.72808,2747.2,2747.0,3.2078]
[1740020248595,0.72809,2747.2,2747.0,3.2078]
[1740020248804,0.72809,2747.1,2747.0,3.2078]
[1740020249094,0.72808,2747.2,2747.0,3.2078]
[1740020249396,2.534,2747.2,2747.0,3.2078]
[1740020250800,3.26208,2747.2,2747.0,3.2078]
[1740020250998,2.534,2747.2,2747.0,3.2078]
[1740020252096,3.26208,2747.2,2747.0,3.2078]
[1740020252495,0.72809,2747.1,2747.0,3.2078]
[1740020252695,0.72815,2746.9,2746.8,0.00545445]
[1740020254101,4.48087445,2747.1,2746.8,0.00545445]
[1740020254299,0.72815,2746.9,2746.8,0.00545445]
[1740020254795,3.75275445,2747.1,2746.8,0.00545445]
[1740020255098,0.72815,2746.9,2746.8,0.00545445]
[1740020255301,3.75275445,2747.1,2746.8,0.00545445]
[1740020255694,0.54495445,2747.1,2746.8,0.00545445]
[1740020255899,2.527,2747.0,2746.8,0.00545445]
[1740020256095,3.25513,2747.0,2746.8,0.00545445]
[1740020256796,2.527,2747.0,2746.8,0.00545445]
[1740020256997,0.72815,2746.9,2746.8,0.00545445]
[1740020257397,1.82061,2746.6,2745.3,3.2078]
[1740020257602,3.2078,2746.0,2745.3,3.2078]
[1740020257902,2.536,2745.9,2745.3,3.2078]
[1740020258099,3.26442,2745.9,2745.3,3.2078]
[1740020258298,3.2078,2745.7,2744.8,3.1578]
[1740020258602,3.2078,2745.5,2744.7,3.2078]
[1740020258795,0.00545445,2745.5,2744.7,3.2078]
[1740020258994,0.00545445,2745.5,2745.4,0.72854]
[1740020259198,3.2078,2745.8,2745.1,3.2078]
[1740020259394,3.2078,2746.1,2745.4,3.2078]
[1740020259999,0.72839,2746.0,2745.4,3.2078]
[1740020260300,3.2078,2745.7,2745.2,0.00546448]
[1740020261304,3.2078,2745.4,2745.2,0.00546448]
[1740020261512,2.554,2745.3,2745.2,0.00546448]
[1740020262303,3.28257,2745.3,2745.2,0.00546448]
[1740020263004,0.72866,2745.0,2744.5,45.39211196]
[1740020263207,3.2078,2744.7,2744.5,4.59211196]
[1740020263903,3.2078,2744.7,2744.4,0.5749]
[1740020264703,3.2078,2744.7,2744.1,40.8]
[1740020264907,2.553,2744.9,2744.1,40.8]
[1740020264908,3.2078,2744.4,2744.1,40.8]
[1740020265210,5.7598,2744.4,2743.9,0.5798]
[1740020265399,6.332,2744.4,2743.9,0.5798]
[1740020265600,0.72886,2744.3,2743.9,0.5798]
[1740020266202,6.332,2744.4,2743.9,0.5798]
[1740020266413,7.06082,2744.4,2743.9,0.5798]
[1740020266712,5.7598,2744.4,2743.9,1.30873]
[1740020266905,5.7598,2744.4,2743.9,1.30874]
[1740020267304,5.7598,2744.4,2743.9,0.5798]
[1740020267611,5.7598,2744.4,2743.9,1.30873]
[1740020268303,2.55646448,2744.5,2744.2,0.72886]
[1740020268510,2.55646448,2744.5,2744.3,0.72882]
[1740020268717,0.00546448,2744.5,2744.4,0.72881]
[1740020269205,3.2078,2745.0,2744.9,0.72868]
[1740020269906,3.2078,2745.5,2744.9,7.1986]
[1740020270209,3.2078,2745.5,2744.9,1.1986]
[1740020270513,3.94179448,2745.5,2744.9,1.20406448]
[1740020270710,0.72856,2745.4,2744.9,1.20406448]
[1740020270899,0.72859,2745.3,2744.9,42.00406448]
[1740020271105,3.21326448,2745.5,2744.9,42.00406448]
[1740020271411,0.00546448,2745.5,2745.1,3.93642]
[1740020272308,0.00546448,2745.5,2745.1,3.2078]
[1740020273010,0.73398448,2745.5,2745.1,3.2078]
[1740020273214,0.00546448,2745.5,2745.1,3.2078]
[1740020273405,0.00546448,2745.5,2745.4,3.2078]
[1740020274506,0.00546448,2745.5,2745.4,3.93634]
[1740020274905,0.00546448,2745.5,2745.4,3.2078]
[1740020278418,0.00546448,2745.5,2745.4,3.93634]
[1740020279118,0.00546448,2745.5,2745.4,3.2078]
[1740020279710,0.53676448,2745.5,2745.4,3.2078]
[1740020280114,1.26528448,2745.5,2745.4,3.2078]
[1740020281719,0.53676448,2745.5,2745.4,3.2078]
[1740020281923,0.53676448,2745.5,2745.4,3.93634]
[1740020282316,0.53676448,2745.5,2745.4,3.2078]
[1740020283016,0.53676448,2745.5,2745.4,3.93634]
[1740020284216,0.53676448,2745.5,2745.4,3.2078]
[1740020284814,0.53676448,2745.5,2745.4,3.93634]
[1740020287825,0.53676448,2745.5,2745.4,3.2078]
[1740020288224,0.53676448,2745.5,2745.4,3.93634]
[1740020291323,0.00546448,2745.5,2745.4,3.93634]
[1740020292022,0.00546448,2745.5,2745.4,4.2234846]
[1740020294324,0.572,2746.2,2745.4,9.4949446]
[1740020294521,0.572,2746.2,2746.1,0.72836]
[1740020294918,0.572,2746.2,2745.9,3.2078]
[1740020295228,0.572,2746.2,2745.9,2.3231]
[1740020295417,3.2078,2746.0,2745.6,1.1986]
[1740020295618,3.2078,2745.7,2744.9,3.21326448]
[1740020295822,0.72857,2745.3,2744.9,3.21326448]
[1740020296627,2.527,2745.4,2744.9,3.21326448]
[1740020296828,3.25556,2745.4,2744.9,3.94193448]
[1740020297730,3.25556,2745.4,2744.9,3.21326448]
[1740020298433,2.527,2745.4,2744.9,3.21326448]
[1740020298624,0.5506,2745.3,2745.0,0.72864]
[1740020299733,0.5506,2745.3,2744.9,3.21326448]
[1740020300329,0.5506,2745.3,2744.9,3.94192448]
[1740020300529,0.5506,2745.3,2744.9,3.21326448]
[1740020300834,2.519,2745.2,2744.9,3.21326448]
[1740020301036,2.519,2745.2,2745.1,0.72862]
[1740020301331,3.0676,2745.3,2744.9,3.21326448]
[1740020301734,3.0676,2745.3,2745.1,0.7286]
[1740020302736,3.0676,2745.3,2745.2,0.7286]
[1740020303034,3.0676,2745.3,2744.9,3.21326448]
[1740020303333,3.0676,2745.3,2745.1,0.72861]
[1740020303738,3.0676,2745.3,2745.2,0.7286]
[1740020304723,0.5506,2745.3,2744.9,3.21326448]
[1740020304931,0.5506,2745.3,2745.2,0.7286]
[1740020307638,1.1062,2745.6,2744.9,5.03490448]
[1740020307838,1.1062,2745.6,2745.4,0.72853]
[1740020308436,1.1062,2745.6,2744.9,5.03490448]
[1740020308936,1.1062,2745.6,2745.5,0.72852]
[1740020309435,1.1062,2745.6,2745.1,0.5576]
[1740020309630,1.1062,2745.6,2745.4,0.72853]
[1740020309828,1.1062,2745.6,2745.2,0.72857]
[1740020310026,3.2078,2745.4,2745.0,0.72862]
[1740020310232,3.2078,2745.4,2744.9,0.00546448]
[1740020310233,0.7286,2745.2,2744.9,0.00546448]
[1740020310536,0.72864,2745.1,2744.9,0.00546448]
[1740020310731,3.93644,2745.1,2744.9,0.00546448]
[1740020311044,0.5436,2745.0,2744.9,0.00546448]
[1740020312237,3.7514,2745.0,2744.9,0.00546448]
[1740020313735,3.7514,2745.0,2744.9,0.73414448]
[1740020314338,2.96,2745.2,2745.1,0.72862]
[1740020315037,0.571,2745.5,2745.4,0.72854]
[1740020315236,3.2078,2745.6,2745.5,0.72852]
[1740020315432,3.2078,2745.6,2745.1,3.2078]
[1740020315633,3.2078,2745.6,2745.5,0.72852]
[1740020318331,5.7158,2745.8,2745.4,0.72853]
[1740020318536,5.7158,2745.8,2745.5,0.72849]
[1740020320440,5.7158,2745.8,2745.6,0.72848]
[1740020320647,3.2078,2746.1,2745.1,3.2078]
[1740020320848,3.2078,2746.1,2745.8,0.72842]
[1740020321039,1.7168,2746.2,2745.4,3.2078]
[1740020321242,1.7168,2746.2,2746.1,0.72836]
[1740020321644,0.00546448,2746.3,2746.2,0.72833]